[Event "*** Titled Tuesday 3|2 Blitz"]
[Site "Chess.com"]
[Date "2015.02.24"]
[Round "2"]
[White "megarompa"]
[Black "GulamaliRises"]
[Result "1-0"]
[WhiteElo "2670"]
[BlackElo "2328"]
[TimeControl "180+2"]
[EndTime "11:23:18 PST"]
[Termination "megarompa won by resignation"]

1. d4 {[%clk 0:03:00]} 1... Nf6 {[%clk 0:02:58.7]} 2. c4 {[%clk 0:02:58.9]} 2...
e6 {[%clk 0:03:00.6]} 3. Nc3 {[%clk 0:03:00.3]} 3... c5 {[%clk 0:03:01]} 4. e3
{[%clk 0:03:01]} 4... a6 {[%clk 0:02:59.7]} 5. d5 {[%clk 0:03:00.1]} 5... exd5
{[%clk 0:03:00.5]} 6. cxd5 {[%clk 0:03:02]} 6... d6 {[%clk 0:03:02.4]} 7. a4
{[%clk 0:02:54.8]} 7... g6 {[%clk 0:03:03.1]} 8. e4 {[%clk 0:02:55.6]} 8... Bg7
{[%clk 0:03:04.3]} 9. Bd3 {[%clk 0:02:54.8]} 9... O-O {[%clk 0:03:04.9]} 10. Nf3
{[%clk 0:02:56.7]} 10... Bg4 {[%clk 0:03:05.5]} 11. O-O {[%clk 0:02:54.9]} 11...
Nbd7 {[%clk 0:03:06.7]} 12. Bf4 {[%clk 0:02:56.5]} 12... Qc7 {[%clk 0:03:05.2]}
13. h3 {[%clk 0:02:55.1]} 13... Bxf3 {[%clk 0:03:06.2]} 14. Qxf3 {[%clk
0:02:55.6]} 14... c4 {[%clk 0:03:05]} 15. Bc2 {[%clk 0:02:54.4]} 15... Rfe8
{[%clk 0:03:04.6]} 16. Rfe1 {[%clk 0:02:53.4]} 16... Rab8 {[%clk 0:03:05.6]} 17.
Rac1 {[%clk 0:02:51.8]} 17... b5 {[%clk 0:03:02.9]} 18. axb5 {[%clk 0:02:53.7]}
18... axb5 {[%clk 0:03:04.8]} 19. b4 {[%clk 0:02:49.3]} 19... cxb3 {[%clk
0:02:54.3]} 20. Bxb3 {[%clk 0:02:48.9]} 20... Nc5 {[%clk 0:02:55.6]} 21. Bc2
{[%clk 0:02:38.5]} 21... Nfd7 {[%clk 0:02:49.4]} 22. Qg3 {[%clk 0:02:30.5]}
22... Ne5 {[%clk 0:02:50.1]} 23. Ne2 {[%clk 0:02:23.3]} 23... Nc4 {[%clk
0:02:27.6]} 24. Nc3 {[%clk 0:02:11.4]} 24... Qd7 {[%clk 0:01:59.9]} 25. Bd3
{[%clk 0:02:07.1]} 25... Ne5 {[%clk 0:01:49.3]} 26. Bb1 {[%clk 0:01:58.3]} 26...
b4 {[%clk 0:01:48.3]} 27. Ne2 {[%clk 0:01:59.9]} 27... b3 {[%clk 0:01:47]} 28.
Nd4 {[%clk 0:01:47]} 28... Rb4 {[%clk 0:01:43.2]} 29. Nc6 {[%clk 0:01:43.8]}
29... Rb5 {[%clk 0:01:18.7]} 30. Bxe5 {[%clk 0:01:40]} 30... Bxe5 {[%clk
0:01:20.6]} 31. f4 {[%clk 0:01:34.7]} 31... Bg7 {[%clk 0:01:21]} 32. Qf2 {[%clk
0:01:17.7]} 32... b2 {[%clk 0:01:19.2]} 33. Rc4 {[%clk 0:01:18.7]} 33... Nb3
{[%clk 0:00:36.4]} 34. f5 {[%clk 0:01:08.8]} 34... Rc5 {[%clk 0:00:12.6]} 35.
Rxc5 {[%clk 0:01:05.5]} 35... Nxc5 {[%clk 0:00:14.3]} 36. f6 {[%clk 0:01:03.1]}
36... Bf8 {[%clk 0:00:12.2]} 37. Qxb2 {[%clk 0:01:02.3]} 37... h5 {[%clk
0:00:12.8]} 38. Qf2 {[%clk 0:00:55.4]} 38... Bh6 {[%clk 0:00:13.2]} 39. Bc2
{[%clk 0:00:56.9]} 39... Kh7 {[%clk 0:00:14.4]} 40. e5 {[%clk 0:00:53.7]} 40...
Qc7 {[%clk 0:00:11.1]} 41. e6 {[%clk 0:00:51.7]} 41... Nxe6 {[%clk 0:00:07]} 42.
dxe6 {[%clk 0:00:47.8]} 42... Qxc6 {[%clk 0:00:08.4]} 43. Qa7 {[%clk 0:00:46.5]}
43... Qc5+ {[%clk 0:00:06.3]} 44. Qxc5 {[%clk 0:00:44.4]} 44... dxc5 {[%clk
0:00:08.2]} 45. e7 {[%clk 0:00:46.1]} 45... Bg5 {[%clk 0:00:09.7]} 46. Ba4
{[%clk 0:00:46.5]} 1-0

[Event "*** Titled Tuesday 3|2 Blitz"]
[Site "Chess.com"]
[Date "2015.02.24"]
[Round "2"]
[White "kesarev"]
[Black "Zvonokchess"]
[Result "1/2-1/2"]
[WhiteElo "2248"]
[BlackElo "2493"]
[TimeControl "180+2"]
[EndTime "11:23:18 PST"]
[Termination "Game drawn by agreement"]

1. Nf3 {[%clk 0:03:00]} 1... c5 {[%clk 0:02:58.3]} 2. c4 {[%clk 0:03:00.3]} 2...
g6 {[%clk 0:02:59.2]} 3. g3 {[%clk 0:02:58.7]} 3... Bg7 {[%clk 0:02:59.6]} 4.
Bg2 {[%clk 0:03:00.6]} 4... Nc6 {[%clk 0:03:01.2]} 5. O-O {[%clk 0:03:01.8]}
5... e6 {[%clk 0:03:02.7]} 6. Nc3 {[%clk 0:03:02.6]} 6... Nge7 {[%clk 0:03:04]}
7. d3 {[%clk 0:03:02.1]} 7... d5 {[%clk 0:03:04.5]} 8. Bg5 {[%clk 0:02:59.3]}
8... h6 {[%clk 0:03:04.1]} 9. Bf4 {[%clk 0:03:00.1]} 9... O-O {[%clk 0:02:59.7]}
10. a3 {[%clk 0:02:59.3]} 10... b6 {[%clk 0:02:57.3]} 11. Qc1 {[%clk 0:02:57.7]}
11... Kh7 {[%clk 0:02:56.6]} 12. Rd1 {[%clk 0:02:51.9]} 12... Bb7 {[%clk
0:02:56.4]} 13. Rb1 {[%clk 0:02:51.7]} 13... d4 {[%clk 0:02:42.7]} 14. Na4
{[%clk 0:02:48.6]} 14... a5 {[%clk 0:02:11.5]} 15. Qc2 {[%clk 0:02:36.3]} 15...
g5 {[%clk 0:01:46.2]} 16. Bd2 {[%clk 0:02:34.5]} 16... Qc7 {[%clk 0:01:28.9]}
17. b4 {[%clk 0:02:12.2]} 17... axb4 {[%clk 0:01:29.5]} 18. axb4 {[%clk
0:02:12.8]} 18... Nxb4 {[%clk 0:01:29.2]} 19. Bxb4 {[%clk 0:02:13.7]} 19... cxb4
{[%clk 0:01:30.6]} 20. Rxb4 {[%clk 0:02:14]} 20... Rab8 {[%clk 0:00:34.6]} 21.
Rdb1 {[%clk 0:02:06.7]} 21... Bc6 {[%clk 0:00:30.9]} 22. Nxb6 {[%clk 0:02:03.6]}
22... Ng6 {[%clk 0:00:31.4]} 23. c5 {[%clk 0:01:30]} 23... Rfd8 {[%clk
0:00:31.6]} 24. Nc4 {[%clk 0:01:02.5]} 24... Rxb4 {[%clk 0:00:29.6]} 25. Rxb4
{[%clk 0:01:03.4]} 25... Bxf3 {[%clk 0:00:30.2]} 26. Bxf3 {[%clk 0:01:02.6]}
26... Qxc5 {[%clk 0:00:31.5]} 27. Rb7 {[%clk 0:01:03.2]} 27... Ne5 {[%clk
0:00:31.8]} 28. Bg2 {[%clk 0:00:54.2]} 28... Kg8 {[%clk 0:00:31.3]} 29. Qb3
{[%clk 0:00:50]} 29... Nxc4 {[%clk 0:00:32.3]} 30. Qxc4 {[%clk 0:00:50.7]} 30...
Rc8 {[%clk 0:00:26]} 31. Qxc5 {[%clk 0:00:38.1]} 31... Rxc5 {[%clk 0:00:27.9]}
32. Bf3 {[%clk 0:00:38.9]} 32... Be5 {[%clk 0:00:26.7]} 33. Kg2 {[%clk
0:00:37.2]} 33... Kg7 {[%clk 0:00:26.5]} 34. Bh5 {[%clk 0:00:36.1]} 34... Rc7
{[%clk 0:00:27.6]} 35. Rxc7 {[%clk 0:00:36.6]} 35... Bxc7 {[%clk 0:00:29.5]} 36.
Bf3 {[%clk 0:00:38.3]} 36... f5 {[%clk 0:00:30.5]} 37. Bb7 {[%clk 0:00:39.1]}
37... Kf6 {[%clk 0:00:31]} 38. h3 {[%clk 0:00:40.2]} 38... Ke5 {[%clk
0:00:28.6]} 39. g4 {[%clk 0:00:40.7]} 39... Kf4 {[%clk 0:00:28.4]} 40. gxf5
{[%clk 0:00:39.3]} 40... exf5 {[%clk 0:00:30.3]} 41. Bc8 {[%clk 0:00:40.2]}
41... Bb6 {[%clk 0:00:27.2]} 42. Bd7 {[%clk 0:00:40]} 42... h5 {[%clk
0:00:28.3]} 43. Be8 {[%clk 0:00:40.1]} 43... h4 {[%clk 0:00:29.8]} 44. Bh5
{[%clk 0:00:36]} 44... g4 {[%clk 0:00:29.6]} 45. hxg4 {[%clk 0:00:36.5]} 45...
fxg4 {[%clk 0:00:30.9]} 46. e3+ {[%clk 0:00:35.3]} 46... dxe3 {[%clk 0:00:31.8]}
47. fxe3+ {[%clk 0:00:36.6]} 47... Bxe3 {[%clk 0:00:33.2]} 48. Bxg4 {[%clk
0:00:37.7]} 48... Kxg4 {[%clk 0:00:34.4]} 49. d4 {[%clk 0:00:39]} 49... Bxd4
{[%clk 0:00:34.7]} 1/2-1/2

[Event "*** Titled Tuesday 3|2 Blitz"]
[Site "Chess.com"]
[Date "2015.02.24"]
[Round "2"]
[White "Ar4uha"]
[Black "Schemato"]
[Result "1-0"]
[WhiteElo "2445"]
[BlackElo "2050"]
[TimeControl "180+2"]
[EndTime "11:23:21 PST"]
[Termination "Ar4uha won by resignation"]

1. e4 {[%clk 0:02:58.2]} 1... e6 {[%clk 0:02:58.5]} 2. c4 {[%clk 0:02:58]} 2...
c5 {[%clk 0:02:57.9]} 3. Nf3 {[%clk 0:02:58.8]} 3... Nc6 {[%clk 0:02:58.6]} 4.
Nc3 {[%clk 0:02:58.8]} 4... e5 {[%clk 0:02:52.5]} 5. Be2 {[%clk 0:02:56.1]} 5...
d6 {[%clk 0:02:53.8]} 6. a3 {[%clk 0:02:57.1]} 6... g6 {[%clk 0:02:54.2]} 7. b4
{[%clk 0:02:56.2]} 7... cxb4 {[%clk 0:02:53.1]} 8. axb4 {[%clk 0:02:57.8]} 8...
Nxb4 {[%clk 0:02:52.7]} 9. Ba3 {[%clk 0:02:59]} 9... Nc6 {[%clk 0:02:41.3]} 10.
O-O {[%clk 0:02:59.9]} 10... Be6 {[%clk 0:02:29.8]} 11. d3 {[%clk 0:02:57.1]}
11... Nf6 {[%clk 0:02:26]} 12. Ng5 {[%clk 0:02:56.2]} 12... Be7 {[%clk
0:02:20.4]} 13. Nxe6 {[%clk 0:02:48.6]} 13... fxe6 {[%clk 0:02:21.3]} 14. Bg4
{[%clk 0:02:44.2]} 14... Nd4 {[%clk 0:02:18.3]} 15. Bh3 {[%clk 0:02:36.1]} 15...
O-O {[%clk 0:02:14.2]} 16. Ne2 {[%clk 0:02:33.3]} 16... Qd7 {[%clk 0:02:06.8]}
17. Nxd4 {[%clk 0:02:32.7]} 17... exd4 {[%clk 0:02:07.7]} 18. f4 {[%clk
0:02:32.7]} 18... Rfe8 {[%clk 0:01:52.8]} 19. Qb3 {[%clk 0:02:30.1]} 19... Bf8
{[%clk 0:01:51.4]} 20. Bb2 {[%clk 0:02:20.2]} 20... Nh5 {[%clk 0:01:42.6]} 21.
Bxd4 {[%clk 0:02:18.3]} 21... b6 {[%clk 0:01:33.2]} 22. Bb2 {[%clk 0:01:56.2]}
22... Bg7 {[%clk 0:01:30.6]} 23. f5 {[%clk 0:01:49.4]} 23... exf5 {[%clk
0:01:20.6]} 24. exf5 {[%clk 0:01:49.4]} 24... Bxb2 {[%clk 0:01:19.9]} 25. Qxb2
{[%clk 0:01:50.4]} 25... Qe7 {[%clk 0:01:13.5]} 26. f6 {[%clk 0:01:43.7]} 26...
Qe3+ {[%clk 0:00:56.7]} 27. Kh1 {[%clk 0:01:43]} 27... Re5 {[%clk 0:00:48.7]}
28. d4 {[%clk 0:01:33]} 28... Re4 {[%clk 0:00:44]} 29. d5 {[%clk 0:01:26.8]}
29... Qd4 {[%clk 0:00:40.1]} 30. f7+ {[%clk 0:01:20.3]} 30... Kf8 {[%clk
0:00:40.5]} 31. Qa3 {[%clk 0:01:14.6]} 31... Qc5 {[%clk 0:00:37.1]} 32. Qc3
{[%clk 0:01:07]} 32... Qd4 {[%clk 0:00:37.4]} 33. Qc1 {[%clk 0:00:57.4]} 33...
Nf4 {[%clk 0:00:36.3]} 34. Be6 {[%clk 0:00:56.8]} 34... Nxe6 {[%clk 0:00:31.2]}
35. dxe6 {[%clk 0:00:49]} 35... Rxe6 {[%clk 0:00:32]} 36. Qg5 {[%clk 0:00:42.2]}
36... Re7 {[%clk 0:00:25.8]} 37. Rae1 {[%clk 0:00:12.7]} 37... Rxe1 {[%clk
0:00:16.4]} 38. Rxe1 {[%clk 0:00:14.1]} 38... Rc8 {[%clk 0:00:07.2]} 39. Qe7+
{[%clk 0:00:14]} 1-0

[Event "*** Titled Tuesday 3|2 Blitz"]
[Site "Chess.com"]
[Date "2015.02.24"]
[Round "2"]
[White "oggy1984"]
[Black "GedoGluperd"]
[Result "0-1"]
[WhiteElo "2195"]
[BlackElo "2233"]
[TimeControl "180+2"]
[EndTime "11:23:48 PST"]
[Termination "GedoGluperd won by resignation"]

1. e4 {[%clk 0:02:56.3]} 1... g6 {[%clk 0:02:58.7]} 2. d4 {[%clk 0:02:56.9]}
2... Bg7 {[%clk 0:03:00.3]} 3. Nc3 {[%clk 0:02:55.8]} 3... d6 {[%clk 0:03:01.6]}
4. Nf3 {[%clk 0:02:56.2]} 4... a6 {[%clk 0:03:02.5]} 5. a4 {[%clk 0:02:49]} 5...
b6 {[%clk 0:03:03.1]} 6. h3 {[%clk 0:02:43.2]} 6... Nd7 {[%clk 0:03:03.4]} 7.
Be3 {[%clk 0:02:43.9]} 7... c5 {[%clk 0:03:04.1]} 8. d5 {[%clk 0:02:37.8]} 8...
Ngf6 {[%clk 0:02:57.1]} 9. Qd2 {[%clk 0:02:34.4]} 9... O-O {[%clk 0:02:55.4]}
10. Be2 {[%clk 0:02:20.4]} 10... Ne5 {[%clk 0:02:56.2]} 11. O-O {[%clk
0:02:12.1]} 11... Rb8 {[%clk 0:02:52.8]} 12. Nh2 {[%clk 0:01:53.9]} 12... Ned7
{[%clk 0:02:41.4]} 13. f4 {[%clk 0:01:51.6]} 13... Ne8 {[%clk 0:02:42.4]} 14.
Nf3 {[%clk 0:01:38.1]} 14... Nc7 {[%clk 0:02:43.9]} 15. f5 {[%clk 0:01:28.1]}
15... b5 {[%clk 0:02:44]} 16. axb5 {[%clk 0:01:27.9]} 16... axb5 {[%clk
0:02:44.8]} 17. Bh6 {[%clk 0:01:27]} 17... b4 {[%clk 0:02:45.6]} 18. Bxg7 {[%clk
0:01:27.6]} 18... Kxg7 {[%clk 0:02:46.4]} 19. Nd1 {[%clk 0:01:25.4]} 19... f6
{[%clk 0:02:32.8]} 20. fxg6 {[%clk 0:01:20.7]} 20... hxg6 {[%clk 0:02:33.4]} 21.
Ne3 {[%clk 0:01:21.3]} 21... Ne5 {[%clk 0:02:15.8]} 22. Ra7 {[%clk 0:01:16.1]}
22... Rb7 {[%clk 0:02:15.4]} 23. Rfa1 {[%clk 0:01:12.7]} 23... Ne8 {[%clk
0:02:06.2]} 24. Qe1 {[%clk 0:01:01.7]} 24... Qb6 {[%clk 0:02:03.6]} 25. R7a6
{[%clk 0:00:57.6]} 25... Qc7 {[%clk 0:02:03.4]} 26. Qg3 {[%clk 0:00:52.3]} 26...
Kf7 {[%clk 0:01:59.5]} 27. Nxe5+ {[%clk 0:00:51.2]} 27... dxe5 {[%clk
0:01:59.7]} 28. Rc6 {[%clk 0:00:49.1]} 28... Qd8 {[%clk 0:01:53]} 29. d6 {[%clk
0:00:42.7]} 29... Nxd6 {[%clk 0:01:48.6]} 30. Qf3 {[%clk 0:00:33.2]} 30... Kg7
{[%clk 0:01:43]} 31. Kh1 {[%clk 0:00:29.1]} 31... Rc7 {[%clk 0:01:42.6]} 32.
Rxc7 {[%clk 0:00:25.7]} 32... Qxc7 {[%clk 0:01:43.7]} 33. Nd5 {[%clk 0:00:26.6]}
33... Qb7 {[%clk 0:01:42.9]} 34. b3 {[%clk 0:00:19.3]} 34... Be6 {[%clk
0:01:43]} 35. Ne3 {[%clk 0:00:17.1]} 35... Qxe4 {[%clk 0:01:38]} 36. Qg3 {[%clk
0:00:18]} 36... Ra8 {[%clk 0:01:23.1]} 37. Rxa8 {[%clk 0:00:09.1]} 37... Qxa8
{[%clk 0:01:23.2]} 38. Bd3 {[%clk 0:00:11]} 38... Qe8 {[%clk 0:01:14.9]} 39. h4
{[%clk 0:00:10.9]} 39... Qf7 {[%clk 0:01:09.8]} 40. h5 {[%clk 0:00:10.1]} 40...
g5 {[%clk 0:01:10.8]} 41. Bg6 {[%clk 0:00:10.4]} 41... Qg8 {[%clk 0:01:07.9]}
42. Qh2 {[%clk 0:00:09.7]} 42... Qh8 {[%clk 0:01:06.9]} 43. g4 {[%clk
0:00:09.9]} 43... Kh6 {[%clk 0:01:07.3]} 44. Qf2 {[%clk 0:00:09.1]} 44... Qa8+
{[%clk 0:01:06.5]} 45. Kh2 {[%clk 0:00:10.2]} 45... Qa1 {[%clk 0:01:05.2]} 46.
Bd3 {[%clk 0:00:09.6]} 46... Qd4 {[%clk 0:01:04.2]} 47. Qf3 {[%clk 0:00:09.2]}
47... e4 {[%clk 0:01:00.7]} 48. Bxe4 {[%clk 0:00:06.8]} 48... Qxe4 {[%clk
0:01:00.1]} 49. Qg3 {[%clk 0:00:06.4]} 49... Qf4 {[%clk 0:00:58.6]} 50. Qxf4
{[%clk 0:00:05.5]} 50... gxf4 {[%clk 0:00:59.7]} 0-1

[Event "*** Titled Tuesday 3|2 Blitz"]
[Site "Chess.com"]
[Date "2015.02.24"]
[Round "2"]
[White "Zlatan56"]
[Black "chito89"]
[Result "0-1"]
[WhiteElo "2490"]
[BlackElo "2577"]
[TimeControl "180+2"]
[EndTime "11:23:56 PST"]
[Termination "chito89 won by resignation"]

1. e4 {[%clk 0:03:00]} 1... e5 {[%clk 0:02:56.7]} 2. Nf3 {[%clk 0:03:00.4]} 2...
Nc6 {[%clk 0:02:57.1]} 3. Nc3 {[%clk 0:03:01.8]} 3... g6 {[%clk 0:02:55.8]} 4.
d4 {[%clk 0:02:55.8]} 4... exd4 {[%clk 0:02:55.1]} 5. Nxd4 {[%clk 0:02:57.2]}
5... Bg7 {[%clk 0:02:55.8]} 6. Be3 {[%clk 0:02:58]} 6... Nge7 {[%clk 0:02:55.3]}
7. Qd2 {[%clk 0:02:57.9]} 7... d6 {[%clk 0:02:47.7]} 8. O-O-O {[%clk 0:02:57.7]}
8... Be6 {[%clk 0:02:38]} 9. Kb1 {[%clk 0:02:54.5]} 9... Qd7 {[%clk 0:02:36.4]}
10. f3 {[%clk 0:02:51.6]} 10... h5 {[%clk 0:02:15.9]} 11. h4 {[%clk 0:02:47.6]}
11... a6 {[%clk 0:02:07.3]} 12. g3 {[%clk 0:02:33.8]} 12... Nxd4 {[%clk
0:01:39]} 13. Bxd4 {[%clk 0:02:32.7]} 13... Bxd4 {[%clk 0:01:40.4]} 14. Qxd4
{[%clk 0:02:32.9]} 14... O-O-O {[%clk 0:01:41.8]} 15. f4 {[%clk 0:02:19.7]}
15... Nc6 {[%clk 0:01:39]} 16. Qf2 {[%clk 0:02:18.4]} 16... Bg4 {[%clk 0:01:38]}
17. Rd2 {[%clk 0:02:18.5]} 17... Rhe8 {[%clk 0:01:31.1]} 18. Bg2 {[%clk
0:02:14.6]} 18... Kb8 {[%clk 0:01:31.3]} 19. e5 {[%clk 0:02:11.1]} 19... Na5
{[%clk 0:01:05.3]} 20. b3 {[%clk 0:02:03.4]} 20... Qe6 {[%clk 0:00:59.4]} 21.
Re1 {[%clk 0:01:56]} 21... Bf5 {[%clk 0:00:48]} 22. Kb2 {[%clk 0:01:55.9]} 22...
dxe5 {[%clk 0:00:33.6]} 23. Rxe5 {[%clk 0:01:45.8]} 23... Qb6 {[%clk 0:00:35.1]}
24. Qxb6 {[%clk 0:01:37.7]} 24... cxb6 {[%clk 0:00:36]} 25. Rxd8+ {[%clk
0:00:58]} 25... Rxd8 {[%clk 0:00:36.8]} 26. Nd5 {[%clk 0:00:58.3]} 26... Nc6
{[%clk 0:00:36]} 27. Re2 {[%clk 0:00:57.1]} 27... b5 {[%clk 0:00:30.5]} 28. Ne3
{[%clk 0:00:51.5]} 28... Be6 {[%clk 0:00:29.5]} 29. Bxc6 {[%clk 0:00:48.8]}
29... bxc6 {[%clk 0:00:30.1]} 30. Kc1 {[%clk 0:00:50.4]} 30... Kc7 {[%clk
0:00:29.8]} 31. Rd2 {[%clk 0:00:50.7]} 31... Re8 {[%clk 0:00:30.3]} 32. Rd3
{[%clk 0:00:48.4]} 32... c5 {[%clk 0:00:27.9]} 33. Kd2 {[%clk 0:00:48.9]} 33...
Kc6 {[%clk 0:00:29.3]} 34. Nd1 {[%clk 0:00:35.4]} 34... Bf5 {[%clk 0:00:28.7]}
35. Re3 {[%clk 0:00:35.1]} 35... Rd8+ {[%clk 0:00:30]} 36. Kc1 {[%clk
0:00:36.2]} 36... Bg4 {[%clk 0:00:19.2]} 37. Nf2 {[%clk 0:00:35.6]} 37... Bf5
{[%clk 0:00:19.7]} 38. Nd1 {[%clk 0:00:36.1]} 38... Bg4 {[%clk 0:00:21]} 39. Nc3
{[%clk 0:00:36.9]} 39... b4 {[%clk 0:00:21.5]} 40. Ne2 {[%clk 0:00:33.6]} 40...
Bxe2 {[%clk 0:00:20.7]} 41. Rxe2 {[%clk 0:00:34]} 41... Rd7 {[%clk 0:00:19]} 42.
Re5 {[%clk 0:00:31.5]} 42... Kd6 {[%clk 0:00:19.5]} 43. Rg5 {[%clk 0:00:26.3]}
43... Re7 {[%clk 0:00:18.4]} 44. f5 {[%clk 0:00:26.6]} 44... Re5 {[%clk
0:00:18]} 45. Kd2 {[%clk 0:00:23.5]} 45... Rxf5 {[%clk 0:00:14.1]} 46. Rxf5
{[%clk 0:00:24.4]} 46... gxf5 {[%clk 0:00:15.8]} 47. Ke3 {[%clk 0:00:25.6]}
47... Ke5 {[%clk 0:00:17.1]} 48. Kf3 {[%clk 0:00:26.3]} 48... f4 {[%clk
0:00:18.4]} 49. g4 {[%clk 0:00:24.3]} 49... hxg4+ {[%clk 0:00:17.7]} 50. Kxg4
{[%clk 0:00:25.4]} 50... Ke4 {[%clk 0:00:19.3]} 51. h5 {[%clk 0:00:26.1]} 51...
f3 {[%clk 0:00:20.9]} 52. Kg3 {[%clk 0:00:24.2]} 52... Ke3 {[%clk 0:00:21.6]}
53. h6 {[%clk 0:00:25.4]} 53... f2 {[%clk 0:00:22.8]} 0-1

[Event "*** Titled Tuesday 3|2 Blitz"]
[Site "Chess.com"]
[Date "2015.02.24"]
[Round "2"]
[White "LADIESGET2KNOWME"]
[Black "destroyer305"]
[Result "0-1"]
[WhiteElo "2290"]
[BlackElo "2140"]
[TimeControl "180+2"]
[EndTime "11:24:22 PST"]
[Termination "destroyer305 won by resignation"]

1. d4 {[%clk 0:03:00]} 1... Nf6 {[%clk 0:02:58.7]} 2. Nc3 {[%clk 0:02:59.5]}
2... c5 {[%clk 0:02:58.6]} 3. Bg5 {[%clk 0:02:57.1]} 3... cxd4 {[%clk
0:02:58.6]} 4. Qxd4 {[%clk 0:02:59]} 4... Nc6 {[%clk 0:02:59.2]} 5. Qh4 {[%clk
0:03:00.5]} 5... e6 {[%clk 0:02:54.9]} 6. O-O-O {[%clk 0:03:01.1]} 6... Be7
{[%clk 0:02:55]} 7. e4 {[%clk 0:03:01.3]} 7... Qa5 {[%clk 0:02:53.3]} 8. f4
{[%clk 0:03:01.5]} 8... h6 {[%clk 0:02:53]} 9. e5 {[%clk 0:02:58.2]} 9... Nd5
{[%clk 0:02:38.7]} 10. Nxd5 {[%clk 0:02:55.4]} 10... Bxg5 {[%clk 0:02:35.6]} 11.
fxg5 {[%clk 0:02:50.4]} 11... exd5 {[%clk 0:02:36.9]} 12. gxh6 {[%clk
0:02:47.7]} 12... Rxh6 {[%clk 0:02:35.8]} 13. Qg3 {[%clk 0:02:42.2]} 13... Qxa2
{[%clk 0:02:33.2]} 14. Qxg7 {[%clk 0:02:36.3]} 14... Rg6 {[%clk 0:02:18.3]} 15.
Qh8+ {[%clk 0:02:36.5]} 15... Ke7 {[%clk 0:02:18.7]} 16. Nf3 {[%clk 0:02:24.1]}
16... Qa1+ {[%clk 0:02:01.1]} 17. Kd2 {[%clk 0:02:25]} 17... Qxb2 {[%clk
0:02:02.6]} 18. Qh4+ {[%clk 0:02:24.7]} 18... Kf8 {[%clk 0:01:59.4]} 19. Qh8+
{[%clk 0:02:14.4]} 19... Ke7 {[%clk 0:01:46.4]} 20. Qh4+ {[%clk 0:02:07.7]}
20... Kf8 {[%clk 0:01:41.5]} 21. g3 {[%clk 0:02:02]} 21... Qb4+ {[%clk
0:01:28.7]} 22. Qxb4+ {[%clk 0:02:01.5]} 22... Nxb4 {[%clk 0:01:30.6]} 23. Kc3
{[%clk 0:01:50.6]} 23... a5 {[%clk 0:01:26.3]} 24. Bd3 {[%clk 0:01:48.9]} 24...
Rc6+ {[%clk 0:01:23.1]} 25. Kb3 {[%clk 0:01:48.7]} 25... d6 {[%clk 0:01:23.8]}
26. Rhf1 {[%clk 0:01:41.1]} 26... Be6 {[%clk 0:01:15.6]} 27. exd6 {[%clk
0:01:36.6]} 27... Rxd6 {[%clk 0:01:11.6]} 28. Nd4 {[%clk 0:01:30.2]} 28... Rb6
{[%clk 0:00:59]} 29. Ka3 {[%clk 0:01:27.3]} 29... Nxd3 {[%clk 0:00:55.9]} 30.
Rxd3 {[%clk 0:01:19]} 30... Rc8 {[%clk 0:00:57.1]} 31. Rdf3 {[%clk 0:01:12.9]}
31... Ke7 {[%clk 0:00:46.6]} 32. h4 {[%clk 0:01:00.8]} 32... Rb4 {[%clk
0:00:37.8]} 33. c3 {[%clk 0:01:00.6]} 33... Rbc4 {[%clk 0:00:36.9]} 34. Kb2
{[%clk 0:00:54.8]} 34... b5 {[%clk 0:00:30]} 35. Re1 {[%clk 0:00:29.3]} 35... b4
{[%clk 0:00:23.8]} 36. Ne2 {[%clk 0:00:10.1]} 36... bxc3+ {[%clk 0:00:23.5]} 37.
Rxc3 {[%clk 0:00:07.5]} 37... Rb4+ {[%clk 0:00:22.9]} 38. Kc1 {[%clk 0:00:07.7]}
38... Rcb8 {[%clk 0:00:23.3]} 39. Nd4 {[%clk 0:00:06.7]} 39... Rxd4 {[%clk
0:00:23.5]} 40. h5 {[%clk 0:00:06]} 40... a4 {[%clk 0:00:20.3]} 41. h6 {[%clk
0:00:06.8]} 41... Rh8 {[%clk 0:00:21]} 42. Rc7+ {[%clk 0:00:06.3]} 42... Kd6
{[%clk 0:00:21.5]} 43. Ra7 {[%clk 0:00:02.5]} 43... Rxh6 {[%clk 0:00:22]} 44.
Kc2 {[%clk 0:00:02.6]} 44... Rh2+ {[%clk 0:00:22.1]} 45. Kc3 {[%clk 0:00:04.5]}
45... Rc4+ {[%clk 0:00:23.3]} 46. Kd3 {[%clk 0:00:06.4]} 46... Rg2 {[%clk
0:00:23.7]} 47. Ra6+ {[%clk 0:00:06.2]} 47... Kc5 {[%clk 0:00:24.6]} 48. Re2
{[%clk 0:00:05.7]} 48... Rxg3+ {[%clk 0:00:25.2]} 49. Kd2 {[%clk 0:00:07.6]}
49... Rgc3 {[%clk 0:00:24.5]} 50. Ke1 {[%clk 0:00:08.5]} 50... Re4 {[%clk
0:00:24]} 51. Rxe4 {[%clk 0:00:08.8]} 51... dxe4 {[%clk 0:00:25.1]} 52. Rxa4
{[%clk 0:00:10.7]} 52... Kd5 {[%clk 0:00:25.5]} 53. Kd2 {[%clk 0:00:11.8]} 53...
Rh3 {[%clk 0:00:25.7]} 54. Ra6 {[%clk 0:00:11.5]} 54... Ke5 {[%clk 0:00:26.1]}
55. Ke2 {[%clk 0:00:12.3]} 55... Kf4 {[%clk 0:00:27]} 56. Ra1 {[%clk 0:00:13]}
56... Rh2+ {[%clk 0:00:28]} 57. Ke1 {[%clk 0:00:14.3]} 57... Rh1+ {[%clk
0:00:29.4]} 0-1